[Event "Late-Titled-Tuesday-Blitz-January-23-2024"]
[Site "Chess.com"]
[Date "2024.01.23"]
[Round "4"]
[White "PawnEatingZombie"]
[Black "m_ezat"]
[Result "0-1"]
[WhiteElo "2113"]
[BlackElo "2449"]
[TimeControl "180+1"]
[EndTime "14:37:53 PST"]
[Termination "m_ezat won by resignation"]

1. e4 {[%clk 0:03:00.9]} 1... d5 {[%clk 0:02:55.9]} 2. exd5 {[%clk 0:02:59.4]}
2... c6 {[%clk 0:02:56.6]} 3. d4 {[%clk 0:02:52.7]} 3... cxd5 {[%clk 0:02:53.6]}
4. Bd3 {[%clk 0:02:51.4]} 4... Nc6 {[%clk 0:02:52]} 5. c3 {[%clk 0:02:50]} 5...
Qc7 {[%clk 0:02:52.4]} 6. h3 {[%clk 0:02:38.6]} 6... Nf6 {[%clk 0:02:43.1]} 7.
Nf3 {[%clk 0:02:37.9]} 7... g6 {[%clk 0:02:41.6]} 8. O-O {[%clk 0:02:36]} 8...
Bg7 {[%clk 0:02:41.5]} 9. Re1 {[%clk 0:02:34.6]} 9... O-O {[%clk 0:02:40.5]} 10.
Nbd2 {[%clk 0:02:28.7]} 10... Bf5 {[%clk 0:02:40.2]} 11. Bxf5 {[%clk 0:02:24.3]}
11... gxf5 {[%clk 0:02:39.6]} 12. Nb3 {[%clk 0:02:15.6]} 12... Ne4 {[%clk
0:02:37.8]} 13. Bd2 {[%clk 0:01:59.3]} 13... e6 {[%clk 0:02:36.7]} 14. Nc1
{[%clk 0:01:50.3]} 14... Kh8 {[%clk 0:02:33.4]} 15. Nd3 {[%clk 0:01:48.9]} 15...
Bf6 {[%clk 0:02:32.8]} 16. Bf4 {[%clk 0:01:45.5]} 16... Qb6 {[%clk 0:02:30.3]}
17. Nfe5 {[%clk 0:01:31.9]} 17... Nxe5 {[%clk 0:02:29.6]} 18. Nxe5 {[%clk
0:01:15.7]} 18... Qxb2 {[%clk 0:02:25.8]} 19. f3 {[%clk 0:01:01.3]} 19... Nxc3
{[%clk 0:02:22.4]} 20. Qd3 {[%clk 0:00:57.4]} 20... Rac8 {[%clk 0:02:17.2]} 21.
Nd7 {[%clk 0:00:56.5]} 21... Bg7 {[%clk 0:01:39.5]} 22. Nxf8 {[%clk 0:00:55]}
22... Rxf8 {[%clk 0:01:39.6]} 23. Rac1 {[%clk 0:00:48.9]} 23... Rc8 {[%clk
0:01:38.2]} 24. Bd2 {[%clk 0:00:47.3]} 24... Rc4 {[%clk 0:01:22.9]} 25. Bxc3
{[%clk 0:00:41.2]} 25... Qa3 {[%clk 0:01:21.2]} 26. Qd2 {[%clk 0:00:37.6]} 26...
b5 {[%clk 0:01:15.8]} 27. Bb2 {[%clk 0:00:37.5]} 27... Qxa2 {[%clk 0:01:13]} 28.
Rxc4 {[%clk 0:00:36.7]} 28... bxc4 {[%clk 0:01:13.1]} 29. Rd1 {[%clk 0:00:30.4]}
29... a5 {[%clk 0:01:07.9]} 30. Bc3 {[%clk 0:00:30.5]} 30... Qb3 {[%clk
0:01:04.7]} 31. Ra1 {[%clk 0:00:27.9]} 31... a4 {[%clk 0:01:04.4]} 32. Qb2
{[%clk 0:00:26.1]} 32... Bf6 {[%clk 0:01:01.3]} 33. Qxb3 {[%clk 0:00:24.6]}
33... axb3 {[%clk 0:00:59.3]} 34. Kf1 {[%clk 0:00:23.9]} 34... Kg7 {[%clk
0:00:56.9]} 35. Ke2 {[%clk 0:00:24.2]} 35... Kg6 {[%clk 0:00:37.5]} 36. Ra7
{[%clk 0:00:23.7]} 36... Bg5 {[%clk 0:00:35.2]} 37. Kd1 {[%clk 0:00:18.4]} 37...
Be3 {[%clk 0:00:33.2]} 38. g3 {[%clk 0:00:16.1]} 38... e5 {[%clk 0:00:33.4]} 39.
Ra6+ {[%clk 0:00:12.9]} 39... f6 {[%clk 0:00:33]} 40. dxe5 {[%clk 0:00:12.2]}
40... d4 {[%clk 0:00:33.8]} 41. Rxf6+ {[%clk 0:00:11.1]} 41... Kg7 {[%clk
0:00:34]} 42. Rxf5 {[%clk 0:00:06]} 42... dxc3 {[%clk 0:00:31.5]} 43. e6 {[%clk
0:00:06.4]} 43... c2+ {[%clk 0:00:31.6]} 44. Ke2 {[%clk 0:00:06.8]} 44... c1=Q
{[%clk 0:00:31.9]} 45. e7 {[%clk 0:00:07.1]} 45... Qd2+ {[%clk 0:00:32]} 0-1

[Event "Late-Titled-Tuesday-Blitz-January-23-2024"]
[Site "Chess.com"]
[Date "2024.01.23"]
[Round "4"]
[White "CarlosjPineror"]
[Black "egnfanclub"]
[Result "1-0"]
[WhiteElo "2607"]
[BlackElo "2359"]
[TimeControl "180+1"]
[EndTime "14:37:56 PST"]
[Termination "CarlosjPineror won by resignation"]

1. e4 {[%clk 0:03:00.9]} 1... e5 {[%clk 0:02:59.3]} 2. Nf3 {[%clk 0:02:57.3]}
2... Nc6 {[%clk 0:02:59.5]} 3. Bb5 {[%clk 0:02:55.7]} 3... a6 {[%clk 0:02:59.3]}
4. Ba4 {[%clk 0:02:54]} 4... d6 {[%clk 0:02:59.3]} 5. d3 {[%clk 0:02:53.9]} 5...
f5 {[%clk 0:02:50.5]} 6. c3 {[%clk 0:02:52.3]} 6... Be7 {[%clk 0:02:50.7]} 7.
Nbd2 {[%clk 0:02:50.4]} 7... Nf6 {[%clk 0:02:51]} 8. h3 {[%clk 0:02:49.7]} 8...
O-O {[%clk 0:02:50.9]} 9. Qe2 {[%clk 0:02:49.2]} 9... f4 {[%clk 0:02:40.4]} 10.
Bb3+ {[%clk 0:02:46.8]} 10... Kh8 {[%clk 0:02:40.1]} 11. Ng5 {[%clk 0:02:47.4]}
11... Qe8 {[%clk 0:02:40.4]} 12. Ne6 {[%clk 0:02:46.8]} 12... Bxe6 {[%clk
0:02:39.3]} 13. Bxe6 {[%clk 0:02:47.7]} 13... Nd8 {[%clk 0:02:10.9]} 14. Bb3
{[%clk 0:02:40.8]} 14... b5 {[%clk 0:02:01.6]} 15. Nf3 {[%clk 0:02:34.1]} 15...
c5 {[%clk 0:01:41.3]} 16. Bd2 {[%clk 0:02:28.9]} 16... a5 {[%clk 0:01:22.1]} 17.
a4 {[%clk 0:02:28.1]} 17... b4 {[%clk 0:01:18.2]} 18. Bc4 {[%clk 0:02:26.7]}
18... Qh5 {[%clk 0:01:11.8]} 19. Nh2 {[%clk 0:02:17.4]} 19... Rb8 {[%clk
0:01:00]} 20. Qxh5 {[%clk 0:02:15.7]} 20... Nxh5 {[%clk 0:01:00.9]} 21. Nf3
{[%clk 0:02:06.8]} 21... g5 {[%clk 0:00:56.9]} 22. Kd1 {[%clk 0:02:05.6]} 22...
Ng7 {[%clk 0:00:37.3]} 23. Kc2 {[%clk 0:02:04.6]} 23... Nge6 {[%clk 0:00:35.5]}
24. Ng1 {[%clk 0:01:58.3]} 24... Kg7 {[%clk 0:00:35.7]} 25. f3 {[%clk
0:01:56.6]} 25... Kf6 {[%clk 0:00:33.3]} 26. h4 {[%clk 0:01:54.2]} 26... Kg6
{[%clk 0:00:28.7]} 27. hxg5 {[%clk 0:01:52.5]} 27... Nxg5 {[%clk 0:00:25.3]} 28.
Nh3 {[%clk 0:01:50]} 28... h6 {[%clk 0:00:25.6]} 29. Nf2 {[%clk 0:01:49.3]}
29... h5 {[%clk 0:00:22.9]} 30. Rh2 {[%clk 0:01:48.3]} 30... Rh8 {[%clk
0:00:21.4]} 31. Rah1 {[%clk 0:01:48.1]} 31... Ndf7 {[%clk 0:00:15.5]} 32. Nd1
{[%clk 0:01:45.4]} 32... Bf6 {[%clk 0:00:15.9]} 33. Be1 {[%clk 0:01:41.4]} 33...
Rh7 {[%clk 0:00:14.2]} 34. Bh4 {[%clk 0:01:41.3]} 34... Rbh8 {[%clk 0:00:14.3]}
35. Nf2 {[%clk 0:01:41.9]} 35... Bd8 {[%clk 0:00:08.7]} 36. Bd5 {[%clk
0:01:35.6]} 36... Rh6 {[%clk 0:00:09]} 37. Kb3 {[%clk 0:01:35]} 37... R6h7
{[%clk 0:00:09.4]} 38. Nh3 {[%clk 0:01:31.3]} 38... Nxh3 {[%clk 0:00:08.9]} 39.
Rxh3 {[%clk 0:01:31]} 39... Bxh4 {[%clk 0:00:09]} 40. Rxh4 {[%clk 0:01:31.9]}
40... Ng5 {[%clk 0:00:09.3]} 41. Kc4 {[%clk 0:01:26]} 41... Rb8 {[%clk
0:00:09.8]} 42. R1h2 {[%clk 0:01:04.3]} 42... bxc3 {[%clk 0:00:10.1]} 43. Kxc3
{[%clk 0:01:04.6]} 43... Rb4 {[%clk 0:00:09.8]} 44. b3 {[%clk 0:01:04.4]} 44...
Rh6 {[%clk 0:00:08.7]} 45. Bc4 {[%clk 0:01:04.3]} 45... Rh7 {[%clk 0:00:08.6]}
46. Kd2 {[%clk 0:01:01.4]} 46... Rh6 {[%clk 0:00:08.4]} 47. Ke2 {[%clk
0:01:01.8]} 47... Rb8 {[%clk 0:00:08.5]} 48. Kf2 {[%clk 0:01:01.7]} 48... Rbh8
{[%clk 0:00:09.3]} 49. g3 {[%clk 0:01:01.1]} 49... Nf7 {[%clk 0:00:08.7]} 50.
gxf4 {[%clk 0:01:00.3]} 50... exf4 {[%clk 0:00:08.7]} 51. Rxf4 {[%clk
0:01:00.8]} 51... Ne5 {[%clk 0:00:09.6]} 52. Rg2+ {[%clk 0:01:00.5]} 52... Kh7
{[%clk 0:00:08.4]} 53. Rf5 {[%clk 0:01:00.1]} 53... Rg6 {[%clk 0:00:07.3]} 54.
Rxh5+ {[%clk 0:00:59.2]} 54... Rh6 {[%clk 0:00:06.7]} 55. Rxh6+ {[%clk 0:00:59]}
55... Kxh6 {[%clk 0:00:07.6]} 56. Rh2+ {[%clk 0:00:59.7]} 1-0

[Event "Late-Titled-Tuesday-Blitz-January-23-2024"]
[Site "Chess.com"]
[Date "2024.01.23"]
[Round "4"]
[White "UnTucopalaTimba"]
[Black "Charodej1"]
[Result "0-1"]
[WhiteElo "1940"]
[BlackElo "2269"]
[TimeControl "180+1"]
[EndTime "14:37:56 PST"]
[Termination "Charodej1 won on time"]

1. e4 {[%clk 0:03:00]} 1... d5 {[%clk 0:02:54.6]} 2. exd5 {[%clk 0:02:59.3]}
2... Qxd5 {[%clk 0:02:54.8]} 3. Nc3 {[%clk 0:02:59.4]} 3... Qa5 {[%clk
0:02:54.9]} 4. d4 {[%clk 0:02:58.7]} 4... Nf6 {[%clk 0:02:51.7]} 5. Nf3 {[%clk
0:02:56.8]} 5... c6 {[%clk 0:02:48.2]} 6. Bd2 {[%clk 0:02:54.3]} 6... Bg4 {[%clk
0:02:43.4]} 7. h3 {[%clk 0:02:52.8]} 7... Bh5 {[%clk 0:02:41.8]} 8. g4 {[%clk
0:02:51.4]} 8... Bg6 {[%clk 0:02:41.8]} 9. Bc4 {[%clk 0:02:49]} 9... Nbd7 {[%clk
0:02:32]} 10. g5 {[%clk 0:02:25.8]} 10... Nh5 {[%clk 0:02:13.7]} 11. Nh4 {[%clk
0:02:17.4]} 11... Qc7 {[%clk 0:02:07.2]} 12. Nxg6 {[%clk 0:02:16.1]} 12... hxg6
{[%clk 0:02:05.9]} 13. Qf3 {[%clk 0:02:13.8]} 13... e6 {[%clk 0:01:56.9]} 14.
O-O-O {[%clk 0:02:10.9]} 14... Bd6 {[%clk 0:01:48.3]} 15. Rhe1 {[%clk
0:02:04.9]} 15... Nb6 {[%clk 0:01:36.9]} 16. Bb3 {[%clk 0:01:51.1]} 16... O-O-O
{[%clk 0:01:29]} 17. Ne4 {[%clk 0:01:48.8]} 17... Bf4 {[%clk 0:01:25.9]} 18. Kb1
{[%clk 0:01:28.6]} 18... Bxd2 {[%clk 0:01:14]} 19. Rxd2 {[%clk 0:01:28.1]} 19...
Qf4 {[%clk 0:01:13.4]} 20. Re3 {[%clk 0:01:06.3]} 20... Rhf8 {[%clk 0:00:35.4]}
21. a3 {[%clk 0:00:58.5]} 21... Nd5 {[%clk 0:00:35.3]} 22. Red3 {[%clk
0:00:38.3]} 22... Qc7 {[%clk 0:00:29.1]} 23. Nc5 {[%clk 0:00:29.2]} 23... Nhf4
{[%clk 0:00:26.4]} 24. Bxd5 {[%clk 0:00:19.8]} 24... Nxd3 {[%clk 0:00:20.6]} 25.
Qxd3 {[%clk 0:00:13]} 25... Rxd5 {[%clk 0:00:19.7]} 26. Qf3 {[%clk 0:00:11.1]}
26... Rfd8 {[%clk 0:00:18.8]} 27. Nb3 {[%clk 0:00:08.6]} 27... Kb8 {[%clk
0:00:17.1]} 28. h4 {[%clk 0:00:06.6]} 28... e5 {[%clk 0:00:16.9]} 29. c4 {[%clk
0:00:05.9]} 29... R5d7 {[%clk 0:00:16.9]} 30. Nc5 {[%clk 0:00:01.9]} 30... Rxd4
{[%clk 0:00:15.9]} 31. Re2 {[%clk 0:00:01.6]} 31... Rxc4 {[%clk 0:00:14.5]} 32.
Ne4 {[%clk 0:00:01.3]} 32... Rcd4 {[%clk 0:00:11.5]} 0-1

[Event "Late-Titled-Tuesday-Blitz-January-23-2024"]
[Site "Chess.com"]
[Date "2024.01.23"]
[Round "4"]
[White "ural58"]
[Black "Blackwhite017"]
[Result "1-0"]
[WhiteElo "2456"]
[BlackElo "2084"]
[TimeControl "180+1"]
[EndTime "14:37:57 PST"]
[Termination "ural58 won on time"]

1. e4 {[%clk 0:03:00.9]} 1... c5 {[%clk 0:03:00]} 2. b3 {[%clk 0:02:38.5]} 2...
Nc6 {[%clk 0:02:58]} 3. Bb2 {[%clk 0:02:34.3]} 3... e5 {[%clk 0:02:57.8]} 4. f4
{[%clk 0:01:56.4]} 4... exf4 {[%clk 0:02:43.1]} 5. Qf3 {[%clk 0:01:56]} 5...
Qh4+ {[%clk 0:02:36.7]} 6. g3 {[%clk 0:01:54]} 6... fxg3 {[%clk 0:02:28.6]} 7.
hxg3 {[%clk 0:01:54.1]} 7... Qe7 {[%clk 0:02:18.5]} 8. Bc4 {[%clk 0:01:54.1]}
8... Nf6 {[%clk 0:02:10.4]} 9. Bxf6 {[%clk 0:01:54]} 9... Qxf6 {[%clk
0:02:07.9]} 10. Qxf6 {[%clk 0:01:51.8]} 10... gxf6 {[%clk 0:02:08]} 11. Nc3
{[%clk 0:01:51.6]} 11... Ne7 {[%clk 0:01:42.4]} 12. Nge2 {[%clk 0:01:46.1]}
12... Bg7 {[%clk 0:01:41.7]} 13. Nf4 {[%clk 0:01:37.5]} 13... f5 {[%clk
0:01:35.1]} 14. O-O-O {[%clk 0:01:33.1]} 14... Bxc3 {[%clk 0:01:29.3]} 15. dxc3
{[%clk 0:01:31.6]} 15... fxe4 {[%clk 0:01:29.8]} 16. Rd6 {[%clk 0:01:21.8]}
16... Nf5 {[%clk 0:01:23.8]} 17. Rf6 {[%clk 0:01:20.7]} 17... Nxg3 {[%clk
0:01:14.8]} 18. Bxf7+ {[%clk 0:01:15.4]} 18... Kd8 {[%clk 0:01:01.2]} 19. Rg1
{[%clk 0:01:00.1]} 19... d5 {[%clk 0:00:29.6]} 20. Rxg3 {[%clk 0:00:55.6]} 20...
d4 {[%clk 0:00:20.8]} 21. cxd4 {[%clk 0:00:52.3]} 21... cxd4 {[%clk 0:00:21.7]}
22. Bd5 {[%clk 0:00:46.9]} 22... Ke7 {[%clk 0:00:15.3]} 23. Rf7+ {[%clk
0:00:44.5]} 23... Ke8 {[%clk 0:00:15.5]} 24. Rgg7 {[%clk 0:00:43.2]} 24... Rf8
{[%clk 0:00:11.8]} 25. Re7+ {[%clk 0:00:32.1]} 25... Kd8 {[%clk 0:00:11.3]} 26.
Ne6+ {[%clk 0:00:26.7]} 26... Bxe6 {[%clk 0:00:10.9]} 27. Rxe6 {[%clk
0:00:26.3]} 27... e3 {[%clk 0:00:06.7]} 28. Rd6+ {[%clk 0:00:24.5]} 28... Ke8
{[%clk 0:00:05.3]} 29. Bxb7 {[%clk 0:00:23.4]} 29... Rf1+ {[%clk 0:00:01.5]} 30.
Kb2 {[%clk 0:00:23.1]} 30... e2 {[%clk 0:00:02]} 31. Re6+ {[%clk 0:00:18.3]}
31... Kf8 {[%clk 0:00:01.5]} 32. Rge7 {[%clk 0:00:18.7]} 1-0

[Event "Late-Titled-Tuesday-Blitz-January-23-2024"]
[Site "Chess.com"]
[Date "2024.01.23"]
[Round "4"]
[White "AlexSuv"]
[Black "MikaelyanArman"]
[Result "0-1"]
[WhiteElo "2572"]
[BlackElo "2846"]
[TimeControl "180+1"]
[EndTime "14:37:58 PST"]
[Termination "MikaelyanArman won by resignation"]

1. d4 {[%clk 0:03:00.9]} 1... Nf6 {[%clk 0:02:59.7]} 2. Bg5 {[%clk 0:03:00.3]}
2... Ne4 {[%clk 0:02:59.6]} 3. h4 {[%clk 0:03:00.8]} 3... c5 {[%clk 0:02:54.5]}
4. d5 {[%clk 0:03:01.1]} 4... Qb6 {[%clk 0:02:53.1]} 5. Nd2 {[%clk 0:03:01.6]}
5... Nxd2 {[%clk 0:02:46.1]} 6. Bxd2 {[%clk 0:03:02.5]} 6... Qxb2 {[%clk
0:02:29.1]} 7. Nf3 {[%clk 0:03:02.7]} 7... d6 {[%clk 0:02:21.9]} 8. e4 {[%clk
0:03:03.1]} 8... Qb6 {[%clk 0:02:17.7]} 9. Rb1 {[%clk 0:03:03.1]} 9... Qc7
{[%clk 0:02:12.1]} 10. h5 {[%clk 0:03:03.6]} 10... h6 {[%clk 0:02:11.5]} 11. Bc3
{[%clk 0:02:48]} 11... Nd7 {[%clk 0:02:10.3]} 12. Bc4 {[%clk 0:02:36.8]} 12...
Nf6 {[%clk 0:02:06.1]} 13. e5 {[%clk 0:02:36.6]} 13... Ne4 {[%clk 0:02:04]} 14.
Ba1 {[%clk 0:02:35.9]} 14... a6 {[%clk 0:01:52.2]} 15. Qe2 {[%clk 0:02:30.9]}
15... Bf5 {[%clk 0:01:39.8]} 16. g4 {[%clk 0:02:28.9]} 16... Bh7 {[%clk
0:01:38.6]} 17. Bd3 {[%clk 0:02:22.4]} 17... Ng5 {[%clk 0:01:27.6]} 18. Nxg5
{[%clk 0:02:15.4]} 18... Bxd3 {[%clk 0:01:27.6]} 19. Qxd3 {[%clk 0:01:53.1]}
19... hxg5 {[%clk 0:01:27.7]} 20. exd6 {[%clk 0:01:50.5]} 20... exd6 {[%clk
0:01:25.9]} 21. O-O {[%clk 0:01:50.2]} 21... O-O-O {[%clk 0:01:22.3]} 22. Rb3
{[%clk 0:01:31.1]} 22... c4 {[%clk 0:01:17]} 23. Qf5+ {[%clk 0:01:31.2]} 23...
Qd7 {[%clk 0:01:17.6]} 24. Rf3 {[%clk 0:01:31.7]} 24... Qxf5 {[%clk 0:01:16]}
25. Rxf5 {[%clk 0:01:32.6]} 25... f6 {[%clk 0:01:16.6]} 26. Re1 {[%clk
0:01:29.5]} 26... Kd7 {[%clk 0:01:15.4]} 27. a4 {[%clk 0:01:28.1]} 27... Be7
{[%clk 0:01:07.6]} 28. Rf3 {[%clk 0:01:25.6]} 28... Rhe8 {[%clk 0:01:02.5]} 29.
Rb1 {[%clk 0:01:25.5]} 29... Rb8 {[%clk 0:01:00]} 30. a5 {[%clk 0:01:22.1]}
30... Bd8 {[%clk 0:00:55.2]} 31. Bc3 {[%clk 0:01:22.2]} 31... Re4 {[%clk
0:00:54]} 32. Rg3 {[%clk 0:01:21.7]} 32... Re2 {[%clk 0:00:53.3]} 33. Rb2 {[%clk
0:01:21]} 33... b5 {[%clk 0:00:53.5]} 34. Kf1 {[%clk 0:01:19.5]} 34... Re4
{[%clk 0:00:51.1]} 35. f3 {[%clk 0:01:18.6]} 35... Re3 {[%clk 0:00:48.4]} 36.
Bb4 {[%clk 0:01:16.7]} 36... Bc7 {[%clk 0:00:41.2]} 37. c3 {[%clk 0:01:10.4]}
37... Rbe8 {[%clk 0:00:40.9]} 38. Kf2 {[%clk 0:01:06.2]} 38... Rd3 {[%clk
0:00:37]} 39. Re2 {[%clk 0:00:56.5]} 39... Rxe2+ {[%clk 0:00:33.6]} 40. Kxe2
{[%clk 0:00:57.4]} 40... Rxd5 {[%clk 0:00:33.8]} 41. h6 {[%clk 0:00:58.3]} 41...
gxh6 {[%clk 0:00:33.8]} 42. Rh3 {[%clk 0:00:59.2]} 42... Re5+ {[%clk 0:00:32]}
43. Kf2 {[%clk 0:00:59.7]} 43... Bb8 {[%clk 0:00:22.4]} 44. Rxh6 {[%clk
0:00:59.7]} 44... Ba7+ {[%clk 0:00:23.1]} 45. Kf1 {[%clk 0:01:00.4]} 45... Bc5
{[%clk 0:00:23.6]} 46. Rxf6 {[%clk 0:00:58.4]} 46... Bxb4 {[%clk 0:00:22.4]} 47.
cxb4 {[%clk 0:00:59.3]} 47... c3 {[%clk 0:00:19.9]} 48. Rf7+ {[%clk 0:00:52.4]}
48... Re7 {[%clk 0:00:10.1]} 49. Rxe7+ {[%clk 0:00:42.5]} 49... Kxe7 {[%clk
0:00:11]} 50. Ke2 {[%clk 0:00:42.5]} 50... d5 {[%clk 0:00:11.4]} 51. Kd3 {[%clk
0:00:42.8]} 51... d4 {[%clk 0:00:11.8]} 52. Kc2 {[%clk 0:00:41.6]} 52... Ke6
{[%clk 0:00:12.1]} 53. Kd3 {[%clk 0:00:41.1]} 53... Ke5 {[%clk 0:00:12.3]} 54.
Kc2 {[%clk 0:00:41.5]} 54... Kf4 {[%clk 0:00:12.7]} 0-1

[Event "Late-Titled-Tuesday-Blitz-January-23-2024"]
[Site "Chess.com"]
[Date "2024.01.23"]
[Round "4"]
[White "NitaLucian"]
[Black "katharinareinecke"]
[Result "1-0"]
[WhiteElo "2306"]
[BlackElo "2008"]
[TimeControl "180+1"]
[EndTime "14:37:58 PST"]
[Termination "NitaLucian won on time"]

1. e4 {[%clk 0:02:56.7]} 1... c6 {[%clk 0:02:59]} 2. d3 {[%clk 0:02:57.6]} 2...
d5 {[%clk 0:02:58.7]} 3. Nd2 {[%clk 0:02:58.5]} 3... Nf6 {[%clk 0:02:55]} 4.
Ngf3 {[%clk 0:02:58.8]} 4... Bg4 {[%clk 0:02:53.1]} 5. Be2 {[%clk 0:02:58.9]}
5... e6 {[%clk 0:02:52.9]} 6. O-O {[%clk 0:02:58.7]} 6... Be7 {[%clk 0:02:51.8]}
7. Ne1 {[%clk 0:02:58.7]} 7... Bxe2 {[%clk 0:02:50.8]} 8. Qxe2 {[%clk
0:02:59.6]} 8... O-O {[%clk 0:02:50.8]} 9. e5 {[%clk 0:02:59.8]} 9... Nfd7
{[%clk 0:02:50.3]} 10. Ndf3 {[%clk 0:02:59.9]} 10... c5 {[%clk 0:02:50.2]} 11.
c3 {[%clk 0:02:59.7]} 11... Nc6 {[%clk 0:02:49.9]} 12. Bf4 {[%clk 0:02:59.5]}
12... b5 {[%clk 0:02:45.8]} 13. Nc2 {[%clk 0:02:59.4]} 13... a5 {[%clk
0:02:44.7]} 14. Rfe1 {[%clk 0:02:59.2]} 14... b4 {[%clk 0:02:42.9]} 15. Ne3
{[%clk 0:02:57.1]} 15... bxc3 {[%clk 0:02:38.3]} 16. bxc3 {[%clk 0:02:56.5]}
16... d4 {[%clk 0:02:36.2]} 17. cxd4 {[%clk 0:02:55.9]} 17... Nxd4 {[%clk
0:02:27.3]} 18. Nxd4 {[%clk 0:02:54.8]} 18... cxd4 {[%clk 0:02:26.4]} 19. Nc4
{[%clk 0:02:43.4]} 19... Bb4 {[%clk 0:02:16.2]} 20. Rec1 {[%clk 0:02:40.3]}
20... Bc3 {[%clk 0:02:15.3]} 21. Rab1 {[%clk 0:02:39.4]} 21... Rb8 {[%clk
0:02:06]} 22. Qg4 {[%clk 0:02:22.5]} 22... g6 {[%clk 0:01:31.5]} 23. Bg5 {[%clk
0:02:11.4]} 23... Qc7 {[%clk 0:01:24]} 24. Bf6 {[%clk 0:02:01.6]} 24... Rxb1
{[%clk 0:01:08.8]} 25. Rxb1 {[%clk 0:02:00.9]} 25... Rb8 {[%clk 0:01:08.8]} 26.
Rd1 {[%clk 0:01:57.8]} 26... Nxf6 {[%clk 0:00:46.4]} 27. exf6 {[%clk 0:01:57]}
27... Qd8 {[%clk 0:00:38.5]} 28. Qg5 {[%clk 0:01:53.6]} 28... h6 {[%clk
0:00:35.1]} 29. Qe5 {[%clk 0:01:39.2]} 29... Ra8 {[%clk 0:00:18.7]} 30. h4
{[%clk 0:01:33]} 30... Qd5 {[%clk 0:00:18.4]} 31. Qxd5 {[%clk 0:01:31.8]} 31...
exd5 {[%clk 0:00:18.9]} 32. Nb6 {[%clk 0:01:27.8]} 32... Ra6 {[%clk 0:00:18.4]}
33. Rb1 {[%clk 0:01:22.4]} 33... Kh7 {[%clk 0:00:16.2]} 34. Nxd5 {[%clk
0:01:21.2]} 34... Rd6 {[%clk 0:00:14.8]} 35. Rb5 {[%clk 0:01:20.8]} 35... g5
{[%clk 0:00:14.6]} 36. h5 {[%clk 0:01:19.2]} 36... Bd2 {[%clk 0:00:11.5]} 37. g4
{[%clk 0:01:16.9]} 37... Kg8 {[%clk 0:00:09.9]} 38. Kg2 {[%clk 0:01:16.5]} 38...
a4 {[%clk 0:00:08.2]} 39. Kf3 {[%clk 0:01:14.2]} 39... Re6 {[%clk 0:00:07.6]}
40. Ne7+ {[%clk 0:01:10.4]} 40... Kh7 {[%clk 0:00:06.6]} 41. Nd5 {[%clk
0:01:01.1]} 41... Kg8 {[%clk 0:00:05.8]} 42. Rb8+ {[%clk 0:00:59.7]} 42... Kh7
{[%clk 0:00:05.6]} 43. Rf8 {[%clk 0:00:59.3]} 43... Be1 {[%clk 0:00:02.8]} 44.
Rxf7+ {[%clk 0:00:58.5]} 44... Kg8 {[%clk 0:00:03.1]} 45. Rg7+ {[%clk
0:00:57.7]} 45... Kf8 {[%clk 0:00:03.2]} 46. Rg6 {[%clk 0:00:53.8]} 46... Kf7
{[%clk 0:00:01.6]} 47. Rxh6 {[%clk 0:00:52.1]} 47... Rd6 {[%clk 0:00:01.9]} 48.
Rh7+ {[%clk 0:00:46]} 48... Ke6 {[%clk 0:00:01.8]} 49. Nc7+ {[%clk 0:00:45.5]}
1-0

[Event "Late-Titled-Tuesday-Blitz-January-23-2024"]
[Site "Chess.com"]
[Date "2024.01.23"]
[Round "4"]
[White "ccccvhhhj"]
[Black "IraZyne"]
[Result "1-0"]
[WhiteElo "2496"]
[BlackElo "2208"]
[TimeControl "180+1"]
[EndTime "14:38:00 PST"]
[Termination "ccccvhhhj won by resignation"]

1. e4 {[%clk 0:03:00.9]} 1... Nf6 {[%clk 0:02:59.1]} 2. e5 {[%clk 0:03:00.9]}
2... Nd5 {[%clk 0:02:58.4]} 3. d4 {[%clk 0:03:01.6]} 3... d6 {[%clk 0:02:58.4]}
4. Bc4 {[%clk 0:03:02.2]} 4... c6 {[%clk 0:02:57.7]} 5. exd6 {[%clk 0:02:52]}
5... Qxd6 {[%clk 0:02:56.9]} 6. Nf3 {[%clk 0:02:51.6]} 6... Bg4 {[%clk
0:02:56.3]} 7. O-O {[%clk 0:02:48.8]} 7... e6 {[%clk 0:02:56.4]} 8. Nbd2 {[%clk
0:02:41]} 8... Be7 {[%clk 0:02:47.1]} 9. Ne4 {[%clk 0:02:40.5]} 9... Qc7 {[%clk
0:02:45.4]} 10. a3 {[%clk 0:02:37.6]} 10... Nd7 {[%clk 0:02:44.9]} 11. Bd3
{[%clk 0:02:37.3]} 11... O-O {[%clk 0:02:41.9]} 12. c4 {[%clk 0:02:36.5]} 12...
Nf4 {[%clk 0:02:41.1]} 13. Bc2 {[%clk 0:02:28.2]} 13... Rad8 {[%clk 0:02:34.2]}
14. Be3 {[%clk 0:02:17.6]} 14... Nf6 {[%clk 0:02:33]} 15. Ng3 {[%clk 0:02:12.4]}
15... c5 {[%clk 0:02:21.2]} 16. Qd2 {[%clk 0:02:09.1]} 16... Nh3+ {[%clk
0:02:04.9]} 17. gxh3 {[%clk 0:01:52.2]} 17... Bxf3 {[%clk 0:02:04.6]} 18. Bf4
{[%clk 0:01:51.6]} 18... Qb6 {[%clk 0:01:59.7]} 19. Be5 {[%clk 0:01:47]} 19...
g6 {[%clk 0:01:41.9]} 20. Bxf6 {[%clk 0:01:43.5]} 20... Bxf6 {[%clk 0:01:41.2]}
21. Qf4 {[%clk 0:01:44.1]} 21... Bxd4 {[%clk 0:01:29.2]} 22. Qxf3 {[%clk
0:01:44.3]} 22... Qxb2 {[%clk 0:01:28.7]} 23. Be4 {[%clk 0:01:42.7]} 23... b6
{[%clk 0:01:27.7]} 24. Rab1 {[%clk 0:01:29]} 24... Qd2 {[%clk 0:01:25.3]} 25. h4
{[%clk 0:01:20.2]} 25... f5 {[%clk 0:01:24.9]} 26. Bc6 {[%clk 0:01:19.3]} 26...
Qh6 {[%clk 0:01:11.1]} 27. h5 {[%clk 0:01:16.7]} 27... f4 {[%clk 0:01:09.3]} 28.
Ne4 {[%clk 0:01:10.6]} 28... Qxh5 {[%clk 0:01:04.1]} 29. Qxh5 {[%clk 0:01:08.9]}
29... gxh5 {[%clk 0:01:04.3]} 30. Kh1 {[%clk 0:01:09.8]} 30... Kg7 {[%clk
0:01:00.7]} 31. Rg1+ {[%clk 0:01:05.5]} 31... Kh6 {[%clk 0:01:00.5]} 32. Ng5
{[%clk 0:01:01.3]} 32... Rf6 {[%clk 0:00:57.2]} 33. Ne4 {[%clk 0:00:50.7]} 33...
Rg6 {[%clk 0:00:54.6]} 34. Rxg6+ {[%clk 0:00:42.4]} 34... hxg6 {[%clk 0:00:54]}
35. Kg2 {[%clk 0:00:43]} 35... g5 {[%clk 0:00:52.9]} 36. Kf3 {[%clk 0:00:41.1]}
36... Kg6 {[%clk 0:00:52.7]} 37. a4 {[%clk 0:00:39.5]} 37... Kf5 {[%clk
0:00:52.2]} 38. a5 {[%clk 0:00:37.6]} 38... g4+ {[%clk 0:00:52.1]} 39. Ke2
{[%clk 0:00:35]} 39... Rd6 {[%clk 0:00:48]} 40. Bb7 {[%clk 0:00:34.4]} 40... Rd7
{[%clk 0:00:46.5]} 41. a6 {[%clk 0:00:34.2]} 41... Rg7 {[%clk 0:00:38.7]} 42.
Nd6+ {[%clk 0:00:31.9]} 42... Ke5 {[%clk 0:00:36.9]} 43. Nb5 {[%clk 0:00:32.8]}
43... h4 {[%clk 0:00:32.4]} 44. Nxa7 {[%clk 0:00:32.6]} 44... g3 {[%clk
0:00:28.7]} 45. fxg3 {[%clk 0:00:33.5]} 45... hxg3 {[%clk 0:00:28.4]} 46. hxg3
{[%clk 0:00:34.4]} 46... fxg3 {[%clk 0:00:27.8]} 47. Nc6+ {[%clk 0:00:35.3]}
47... Ke4 {[%clk 0:00:27]} 48. Nxd4+ {[%clk 0:00:35.1]} 48... Kxd4 {[%clk
0:00:26.4]} 49. a7 {[%clk 0:00:36]} 49... Rg8 {[%clk 0:00:22.7]} 50. a8=Q {[%clk
0:00:35.5]} 50... Rxa8 {[%clk 0:00:22.6]} 51. Bxa8 {[%clk 0:00:36.4]} 51... Kxc4
{[%clk 0:00:22.8]} 52. Rxb6 {[%clk 0:00:33.4]} 52... e5 {[%clk 0:00:21]} 53. Rg6
{[%clk 0:00:32.8]} 1-0